bitfinex/quotes_SOLUSD_20251224
["timestamp","ask_amount","ask_price","bid_price","bid_amount"]
[1766584337591,0.72,121.86,121.85,0.1]
[1766584340508,0.72,121.87,121.85,0.1]
[1766584341704,0.72,121.87,121.85,0.82]
[1766584345408,15.7,121.88,121.85,0.82]
[1766584346406,15.7,121.88,121.85,3.46028119]
[1766584346901,15.7,121.88,121.85,0.82]
[1766584348005,0.72,121.88,121.85,0.82]
[1766584349901,0.72,121.89,121.86,0.72]
[1766584350199,10.43767296,121.9,121.87,0.72]
[1766584350403,11.15767296,121.9,121.87,0.72]
[1766584351110,10.43767296,121.9,121.88,0.72]
[1766584351404,0.72,121.91,121.89,0.72]
[1766584353606,27.82823865,121.92,121.89,0.72]
[1766584353902,0.72,121.91,121.89,0.72]
[1766584354880,27.10823865,121.92,121.89,0.72]
[1766584355096,26.13767296,121.92,121.89,0.72]
[1766584355301,0.72,121.91,121.89,0.72]
[1766584358985,26.11767296,121.92,121.89,0.72]
[1766584359193,0.7,121.91,121.89,0.72]
[1766584361406,25.41767296,121.92,121.89,0.72]
[1766584361587,26.10767296,121.92,121.89,0.72]
[1766584361782,0.69,121.91,121.89,0.72]
[1766584362605,0.69,121.9,121.88,0.67]
[1766584364500,0.69,121.89,121.86,0.67]
[1766584366207,0.69,121.89,121.86,8.87606013]
[1766584366708,15.67,121.9,121.87,0.67]
[1766584366900,0.69,121.9,121.87,0.67]
[1766584367096,0.69,121.9,121.87,2.36056569]
[1766584367408,0.69,121.9,121.88,0.67]
[1766584370609,1.69056569,121.91,121.88,0.67]
[1766584370910,0.69,121.91,121.88,0.67]
[1766584371310,12.12823865,121.89,121.86,0.67]
[1766584371609,0.69,121.88,121.86,0.67]
[1766584373113,20.43572387,121.89,121.86,0.67]
[1766584373289,21.12572387,121.89,121.86,0.67]
[1766584373605,10.43767296,121.89,121.86,0.67]
[1766584373799,10.43767296,121.89,121.87,0.67]
[1766584375518,11.12767296,121.89,121.87,0.67]
[1766584376113,11.12767296,121.89,121.85,8.30630151]
[1766584376415,11.12767296,121.89,121.86,0.67]
[1766584378613,10.43767296,121.89,121.86,0.67]
[1766584378917,10.43767296,121.89,121.87,0.67]
[1766584379409,11.12767296,121.89,121.87,0.67]
[1766584381720,24.63559843,121.9,121.88,1.69056569]
[1766584382012,0.69,121.92,121.89,0.67]
[1766584382818,8.89494326,121.92,121.89,0.67]
[1766584383318,0.69,121.92,121.89,0.67]
[1766584383897,18.64261622,121.93,121.91,0.67]
[1766584383898,8.20494326,121.93,121.91,0.67]
[1766584384192,0.69,121.93,121.91,0.67]
[1766584384411,0.69,121.93,121.9,0.67]
[1766584385510,0.69,121.93,121.9,2.36056569]
[1766584385706,23.18398776,121.94,121.92,0.67]
[1766584385908,15.67,121.94,121.92,0.67]
[1766584387318,0.69,121.94,121.92,0.67]
[1766584387517,10.43767296,121.95,121.92,2.37056569]
[1766584387709,15.69,121.96,121.92,10.57244635]
[1766584387910,23.89335728,121.96,121.92,10.57244635]
[1766584388117,34.33103024,121.96,121.93,0.68]
[1766584389004,0.71,121.96,121.94,0.68]
[1766584389220,0.71,121.96,121.93,2.37056569]
[1766584390113,0.71,121.97,121.94,0.68]
[1766584391009,0.71,121.96,121.93,2.37056569]
[1766584391307,0.71,121.96,121.93,0.68]
[1766584395213,0.71,121.96,121.93,8.20132623]
[1766584395411,22.1991793,121.97,121.93,8.20132623]
[1766584395412,0.71,121.97,121.94,2.37056569]
[1766584395605,0.71,121.99,121.96,0.68]
[1766584395804,21.21861361,121.99,121.96,0.68]
[1766584396028,0.71,121.99,121.96,0.68]
[1766584399126,0.71,121.99,121.97,0.68]
[1766584399515,0.71,121.99,121.96,2.37056569]
[1766584399715,0.71,121.99,121.96,0.68]
[1766584408434,11.14767296,122.01,121.98,0.68]
[1766584408813,31.65124058,122.01,121.98,0.68]
[1766584409228,0.71,122.0,121.98,0.68]
[1766584409625,10.43767296,122.0,121.99,0.68]
[1766584410026,10.43767296,122.0,121.98,8.87787886]
[1766584410320,0.71,122.01,121.98,8.87787886]
[1766584411719,0.71,122.01,121.98,0.68]
[1766584412340,0.71,122.0,121.96,0.68]
[1766584412734,15.69,122.0,121.96,0.68]
[1766584413043,0.71,122.0,121.96,0.68]
[1766584413246,0.71,122.0,121.97,0.68]
[1766584413452,23.84755046,122.01,121.97,0.68]
[1766584413636,3.34685202,122.01,121.97,0.68]
[1766584414039,8.19939649,122.0,121.97,0.68]
[1766584414552,8.90939649,122.0,121.97,0.68]
[1766584415050,0.71,122.0,121.97,0.68]
[1766584415726,21.21069844,122.01,121.98,0.68]
[1766584416243,0.71,122.01,121.97,11.51550405]
[1766584418546,0.71,122.01,121.97,8.87865203]
[1766584418750,0.71,122.01,121.97,11.51550405]
[1766584419749,20.49976037,122.01,121.97,11.51550405]
[1766584419947,0.69,122.0,121.97,11.51550405]
[1766584420531,0.69,122.0,121.97,8.87865203]
[1766584420932,0.69,122.0,121.97,0.68]
[1766584429066,23.13661239,122.01,121.97,0.68]
[1766584430863,23.83661239,122.01,121.97,0.68]
[1766584431463,0.7,122.0,121.97,0.68]
[1766584434464,2.63685202,122.0,121.96,8.1993873]
[1766584434760,0.7,121.99,121.96,8.8993873]
[1766584435665,0.7,121.99,121.96,8.1993873]
[1766584435965,0.7,121.99,121.97,0.7]
[1766584436742,0.7,121.99,121.96,8.8993873]
[1766584436946,0.7,121.99,121.97,0.7]
[1766584442064,0.7,122.0,121.97,0.7]
[1766584443064,25.31538461,122.0,121.97,0.7]
[1766584446872,24.61538461,122.0,121.97,0.7]
[1766584447177,25.32538461,122.0,121.97,8.8984447]
[1766584447359,0.71,122.0,121.98,0.7]
[1766584451774,0.71,122.01,121.98,8.89801208]
[1766584451976,48.75372496,122.02,121.99,0.7]
[1766584451977,25.61767296,122.02,121.99,0.7]
[1766584452285,0.2,122.02,122.0,0.7]
[1766584453357,0.71,122.01,121.98,0.7]
[1766584453557,0.71,122.01,121.98,3.33685202]
[1766584453757,0.71,122.01,121.98,0.7]
[1766584453976,0.71,122.01,121.99,0.7]
[1766584454192,15.16,122.02,121.99,0.7]
[1766584454976,15.16,122.02,121.99,2.63685202]
[1766584455182,15.87,122.02,121.98,8.19806308]
[1766584455362,0.71,122.01,121.98,0.7]
[1766584455979,17.79685202,122.02,121.99,0.7]
[1766584456162,30.12,122.02,121.99,0.7]
[1766584456362,15.16,122.02,121.99,0.7]
[1766584456677,15.16,122.02,122.0,0.7]
[1766584456878,0.2,122.02,122.01,0.7]
[1766584457261,43.19452498,122.04,122.01,0.7]
[1766584457982,43.90452498,122.04,122.01,0.7]
[1766584458862,2.63685202,122.03,122.01,0.7]
[1766584459275,10.83392846,122.03,122.01,0.7]
[1766584461675,11.54392846,122.03,122.01,0.7]
[1766584461880,0.71,122.02,121.99,8.89707644]
[1766584463195,8.19707644,122.03,121.99,8.19707644]
[1766584463386,11.54392846,122.03,122.0,0.7]
[1766584465269,0.71,122.02,122.0,0.7]
[1766584466582,25.59767296,122.04,122.01,0.7]
[1766584466771,0.2,122.04,122.02,0.7]
[1766584466971,0.2,122.04,122.02,3.33685202]
[1766584467376,0.2,122.04,122.02,0.7]
[1766584476067,0.2,122.04,122.02,2.38603004]
[1766584477468,0.2,122.04,122.02,1.68603004]
[1766584477675,0.2,122.05,122.04,0.71]
[1766584478913,0.2,122.06,122.04,0.71]
[1766584480014,0.2,122.06,122.04,2.39603004]
[1766584482697,0.2,122.06,122.04,0.71]
[1766584482901,0.2,122.06,122.04,2.39603004]
[1766584483403,0.2,122.06,122.04,0.71]
[1766584483806,0.2,122.06,122.05,0.67]
[1766584484098,0.2,122.07,122.05,0.67]
[1766584486574,0.2,122.07,122.04,0.67]
[1766584486780,0.68,122.06,122.02,10.55109771]
[1766584486980,0.68,122.06,122.03,0.67]
[1766584488304,15.16,122.07,122.03,0.67]
[1766584488482,15.84,122.07,122.03,0.67]
[1766584489619,15.84,122.07,122.03,2.35603004]
[1766584490298,15.84,122.07,122.03,0.67]
[1766584490500,15.84,122.07,122.03,2.35603004]
[1766584490796,15.84,122.07,122.04,0.67]
[1766584495921,0.68,122.06,122.04,0.67]
[1766584496710,15.16,122.07,122.05,2.35603004]
[1766584496911,0.2,122.07,122.04,8.86397199]
[1766584497110,0.2,122.07,122.05,2.35603004]
[1766584497805,0.2,122.07,122.05,10.5492008]
[1766584499526,0.2,122.07,122.06,1.68603004]
[1766584500208,0.2,122.08,122.06,10.5487016]
[1766584500527,0.88,122.1,122.07,2.35603004]
[1766584501738,0.88,122.1,122.07,10.54803671]
[1766584503728,0.68,122.09,122.07,10.54803671]
[1766584505107,0.2,122.1,122.07,10.54803671]
[1766584505108,0.88,122.1,122.08,1.68603004]
[1766584505714,0.88,122.1,122.07,10.54803671]
[1766584506335,0.88,122.1,122.07,8.86200667]
[1766584506545,0.88,122.1,122.07,10.54803671]
[1766584509449,0.2,122.1,122.08,0.67]
[1766584510553,0.2,122.1,122.08,2.35603004]
[1766584511050,0.2,122.1,122.08,0.67]
[1766584511860,0.9,122.1,122.08,0.67]
[1766584512065,0.7,122.09,122.06,2.35603004]
[1766584512273,0.7,122.08,122.04,2.35603004]
[1766584512469,0.7,122.08,122.05,1.68603004]
[1766584514057,0.7,122.08,122.04,10.54972497]
[1766584518370,0.7,122.08,122.05,1.68603004]
[1766584518884,0.7,122.08,122.05,2.35603004]
[1766584519162,0.9,122.1,122.07,2.35603004]
[1766584519364,0.7,122.09,122.07,1.68603004]
[1766584519669,0.7,122.09,122.06,1.68603004]
[1766584520053,0.7,122.09,122.06,2.35603004]
[1766584527270,0.7,122.09,122.06,0.67]
[1766584527480,0.7,122.09,122.05,1.68603004]
[1766584527663,0.7,122.08,122.05,1.68603004]
[1766584528184,0.7,122.08,122.04,10.54967296]
[1766584529164,0.7,122.08,122.05,2.35603004]
[1766584529744,0.7,122.09,122.07,1.68603004]
[1766584529949,0.7,122.09,122.06,2.35603004]
[1766584531075,0.7,122.09,122.05,9.87903031]
[1766584531374,0.7,122.09,122.05,10.54903031]
[1766584531855,0.7,122.09,122.05,0.67]
[1766584532273,0.7,122.09,122.04,11.49672496]
[1766584533158,0.7,122.09,122.05,2.63291488]
[1766584533349,0.7,122.09,122.04,8.86381008]
[1766584533549,0.7,122.09,122.05,2.63291488]
[1766584534784,0.7,122.09,122.05,3.30291488]
[1766584537388,0.7,122.09,122.05,0.67]
[1766584537560,0.7,122.09,122.05,3.30291488]
[1766584539402,10.43767296,122.08,122.04,2.63291488]
[1766584539687,0.69,122.05,122.02,0.71]
[1766584540454,0.69,122.05,122.02,3.34291488]
[1766584540872,0.69,122.05,122.02,2.63291488]
[1766584541385,0.69,122.05,122.01,0.71]
[1766584541594,0.69,122.03,122.0,2.63291488]
[1766584541885,0.69,122.03,122.0,3.34291488]
[1766584542979,0.69,122.03,122.0,11.53955904]
[1766584544974,0.69,122.03,122.0,10.82955904]
[1766584545367,0.69,122.03,122.0,11.53955904]
[1766584545771,0.69,122.03,122.01,2.63291488]
[1766584546292,0.7,122.05,122.02,3.34291488]
[1766584547062,0.7,122.05,122.02,2.63291488]
[1766584549475,0.7,122.05,122.01,11.53845546]
[1766584550194,0.7,122.05,122.01,10.82845546]
[1766584550365,11.13767296,122.06,122.03,3.34291488]
[1766584550565,0.7,122.07,122.04,3.34291488]
[1766584552398,0.7,122.07,122.04,11.53690119]
[1766584552782,0.7,122.08,122.05,0.71]
[1766584553092,0.7,122.08,122.05,3.34291488]
[1766584555291,0.7,122.08,122.05,0.71]
[1766584555492,0.7,122.08,122.05,11.53620848]
[1766584556890,0.7,122.09,122.06,3.34291488]
[1766584557393,0.7,122.09,122.07,2.63291488]
[1766584562096,0.7,122.09,122.07,2.63291488]
[1766584566308,0.7,122.09,122.06,8.90266619]
[1766584566502,0.7,122.09,122.06,3.34291488]
[1766584566909,0.7,122.09,122.05,8.19306044]
[1766584566910,0.7,122.09,122.05,11.53597532]
[1766584567201,0.7,122.09,122.06,0.71]
[1766584570180,0.72,122.08,122.03,0.71]
[1766584570496,0.72,122.08,122.03,2.63291488]
[1766584570699,0.72,122.08,122.04,0.71]
[1766584570996,0.72,122.08,122.04,3.34291488]
[1766584573206,0.72,122.08,122.05,3.34291488]
[1766584575906,25.39767296,122.09,122.06,0.71]
[1766584576078,26.11767296,122.09,122.06,3.34291488]
[1766584577103,26.11767296,122.09,122.06,11.53549057]
[1766584577296,11.15767296,122.09,122.06,11.53549057]
[1766584578289,0.72,122.09,122.06,11.53549057]
[1766584585020,0.72,122.09,122.06,8.90257569]
[1766584587215,0.72,122.09,122.06,11.53549057]
[1766584587394,0.72,122.09,122.06,10.82549057]
[1766584587599,0.72,122.09,122.06,11.53549057]
[1766584588130,0.72,122.09,122.07,3.34291488]
[1766584588420,0.72,122.09,122.07,0.71]
[1766584589425,0.72,122.09,122.06,0.71]
[1766584589720,0.72,122.09,122.06,8.90266058]
[1766584592111,0.72,122.09,122.06,10.58748293]
[1766584596942,0.72,122.09,122.06,8.90266058]
[1766584597143,0.72,122.09,122.06,10.58748293]
[1766584598338,0.72,122.09,122.06,8.90266058]
[1766584598543,0.72,122.09,122.05,10.53790638]
[1766584599049,0.72,122.09,122.05,9.87790638]
[1766584599239,0.72,122.09,122.06,10.53734158]
[1766584606615,0.72,122.09,122.06,8.85251923]
[1766584608445,0.72,122.09,122.06,10.53734158]
[1766584611444,0.72,122.09,122.06,8.85251923]
[1766584618427,0.72,122.09,122.02,114.30951443]
[1766584618626,0.72,122.09,122.03,2.34482235]
[1766584618828,0.72,122.09,122.04,8.85348456]
[1766584619645,1.68482235,122.09,122.04,8.85348456]
[1766584619954,0.66,122.08,122.04,8.85348456]
[1766584620153,0.66,122.08,122.04,9.87830691]
[1766584620357,0.66,122.08,122.05,0.66]
[1766584623260,0.66,122.08,122.05,8.85334757]
[1766584625042,0.66,122.08,122.05,10.53816992]
[1766584627866,0.66,122.08,122.04,2.39482235]
[1766584628369,0.66,122.08,122.04,10.58883971]
[1766584629475,0.66,122.08,122.05,0.71]
[1766584630646,0.66,122.08,122.04,10.58883971]
[1766584632993,1.68482235,122.06,122.02,3.47989832]
[1766584633157,0.71,122.02,121.98,8.9075448]
[1766584633365,0.71,122.02,121.98,10.59236715]
[1766584633559,0.71,122.02,121.98,9.88236715]
[1766584633767,0.71,122.02,121.99,0.71]
[1766584634777,0.71,122.02,121.99,8.90735674]
[1766584638778,0.71,122.02,121.97,32.80765319]
[1766584638981,1.68482235,122.02,121.99,0.71]
[1766584639278,0.71,122.01,121.99,0.71]
[1766584640664,0.71,122.01,121.97,9.88314576]
[1766584640864,0.71,122.01,121.98,0.71]
[1766584652395,0.71,121.99,121.96,8.19940964]
[1766584653074,0.71,121.99,121.96,8.90940964]
[1766584658690,0.71,121.99,121.96,10.83576815]
[1766584658899,0.71,121.99,121.97,0.66]
[1766584669905,0.71,121.99,121.96,0.7]
[1766584672304,3.29635851,122.01,121.97,0.7]
[1766584672610,0.66,122.0,121.97,0.7]
[1766584675507,0.66,121.99,121.97,0.7]
[1766584680900,0.66,122.01,121.98,0.7]
[1766584682225,0.66,121.99,121.96,8.89914577]
[1766584682391,3.29635851,122.01,121.97,0.7]
[1766584682597,0.66,122.0,121.97,0.7]
[1766584683322,3.29635851,122.0,121.97,0.7]
[1766584684400,0.66,122.0,121.97,0.7]
[1766584684719,28.03403147,122.01,121.98,0.7]
[1766584685227,28.69403147,122.01,121.98,0.7]
[1766584686021,28.03403147,122.01,121.98,0.7]
[1766584686420,25.39767296,122.01,121.98,0.7]
[1766584687226,26.05767296,122.01,121.98,0.7]
[1766584687723,0.66,122.0,121.98,0.7]
[1766584688924,0.66,122.0,121.97,8.86873522]
[1766584696434,23.79595565,122.05,122.0,0.66]
[1766584696617,0.66,122.03,121.98,3.29635851]
[1766584696935,0.66,122.03,121.99,2.63635851]
[1766584698126,0.66,122.03,121.98,15.62]
[1766584698435,0.66,122.02,121.99,8.19739322]
[1766584700224,2.63635851,122.02,121.97,0.66]
[1766584700426,0.66,122.0,121.96,10.83551133]
[1766584700737,0.66,122.0,121.96,11.49551133]
[1766584701537,0.66,122.0,121.96,3.29635851]
[1766584701841,0.66,122.0,121.96,11.49562251]
[1766584704140,2.63635851,122.0,121.95,23.81979175]
[1766584704344,0.66,121.99,121.95,26.45615026]
[1766584710337,0.66,121.99,121.95,25.79615026]
[1766584710535,0.66,121.99,121.96,0.66]
[1766584712448,0.66,121.99,121.96,10.83562501]
[1766584712741,0.66,122.0,121.98,0.66]
[1766584712939,0.66,122.0,121.98,3.29635851]
[1766584713738,0.66,122.02,121.98,3.29635851]
[1766584713946,0.66,122.02,121.98,2.3469218]
[1766584714637,0.66,122.02,121.98,10.54476046]
[1766584715641,0.66,122.02,121.98,9.88476046]
[1766584715831,0.66,122.02,121.98,8.85783866]
[1766584716027,0.66,122.02,121.98,10.54476046]
[1766584716226,0.66,122.01,121.97,0.66]
[1766584716442,0.69,122.0,121.96,2.3469218]
[1766584716848,0.69,122.0,121.96,8.85928016]
[1766584717147,0.69,122.0,121.96,10.54620196]
[1766584717347,0.69,122.0,121.96,2.3469218]
[1766584717733,0.69,122.0,121.96,0.66]
[1766584721356,0.69,122.0,121.96,2.3469218]
[1766584722031,0.7,121.99,121.96,2.3469218]
[1766584723856,0.7,121.99,121.96,1.6869218]
[1766584724156,10.43767296,122.0,121.97,0.66]
[1766584724957,11.13767296,122.0,121.97,0.66]
[1766584729065,10.43767296,122.0,121.96,1.6869218]
[1766584729268,0.7,121.99,121.96,2.3469218]
[1766584732166,0.7,121.99,121.97,2.3469218]
[1766584733271,11.13767296,122.0,121.97,10.54561388]
[1766584733466,11.13767296,122.0,121.97,8.85869208]
[1766584733668,11.13767296,122.0,121.97,10.54561388]
[1766584733870,0.7,122.02,121.99,2.3469218]
[1766584734071,0.7,122.02,122.0,1.6869218]
[1766584736168,0.7,122.02,121.99,2.3469218]
[1766584740177,0.7,122.02,121.99,1.6869218]
[1766584740555,0.7,122.02,121.98,2.3469218]
[1766584741072,0.7,122.02,121.98,0.66]
[1766584741273,0.7,122.02,121.98,2.3469218]
[1766584745179,0.7,122.02,121.99,1.6869218]
[1766584745376,0.7,122.02,122.0,1.6869218]
[1766584746256,10.43767296,122.03,122.0,2.3469218]
[1766584746674,11.13767296,122.03,122.0,2.3469218]
[1766584747480,0.67,122.02,122.0,1.6869218]
[1766584749280,0.67,122.02,121.99,2.3469218]
[1766584749484,11.10767296,122.03,122.0,0.66]
[1766584751079,0.67,122.02,121.99,1.6869218]
[1766584751784,0.67,122.02,121.99,2.3469218]
[1766584752281,0.67,122.0,121.94,77.96]
[1766584752490,0.67,121.99,121.95,1.6869218]
[1766584752877,0.67,121.99,121.96,1.6869218]
[1766584753582,0.67,121.99,121.95,1.6869218]
[1766584753964,0.67,121.99,121.94,8.96063741]
[1766584754159,0.67,121.99,121.95,1.6869218]
[1766584754775,0.67,121.99,121.96,1.6869218]
[1766584755492,0.67,121.98,121.94,10.64755921]
[1766584756384,0.67,121.98,121.95,2.3469218]
[1766584756785,0.67,121.99,121.96,0.66]
[1766584756962,0.67,121.99,121.96,2.3469218]
[1766584757369,0.67,121.99,121.96,0.66]
[1766584757585,0.67,121.99,121.96,2.3469218]
[1766584758779,0.67,121.99,121.97,1.6869218]
[1766584758971,0.67,121.99,121.96,2.3469218]
[1766584759182,0.67,121.99,121.96,10.54626578]
[1766584759998,0.67,121.99,121.96,8.85934398]
[1766584760174,0.67,121.99,121.96,10.54626578]
[1766584761882,16.6469218,122.01,121.97,0.66]
[1766584762083,0.67,122.0,121.97,0.66]
[1766584762280,14.96,122.01,121.97,8.19866799]
[1766584762480,15.63,122.01,121.98,2.3469218]
[1766584762691,0.67,122.01,121.98,2.3469218]
[1766584766002,0.67,122.01,121.98,10.54497703]
[1766584767403,0.67,122.01,121.98,8.85805523]
[1766584767606,0.67,122.01,121.97,10.54532334]
[1766584774114,115.39459476,122.02,121.98,0.66]
[1766584774326,0.67,122.01,121.97,10.54532334]
[1766584775298,0.67,122.01,121.97,8.85840154]
[1766584775498,0.67,122.01,121.97,10.54532334]
[1766584775988,0.67,122.01,121.97,11.49446952]
[1766584777812,0.67,122.01,121.97,10.83446952]
[1766584778016,0.67,122.01,121.98,0.65]
[1766584779497,3.30606798,122.01,121.98,0.65]
[1766584779794,18.26606798,122.01,121.98,0.65]
[1766584779989,0.66,122.0,121.96,10.83530828]
[1766584780189,0.66,122.0,121.97,0.65]
[1766584781418,0.66,122.0,121.97,3.28606798]
[1766584782317,0.66,122.0,121.97,11.48474215]
[1766584792425,0.66,122.0,121.97,8.84867417]
[1766584792725,0.66,122.0,121.97,11.48474215]
[1766584797832,0.66,122.0,121.98,0.66]
[1766584798231,0.69,122.0,121.98,0.66]
[1766584798534,0.69,122.0,121.97,11.49474215]
[1766584798933,0.69,122.0,121.97,10.83474215]
[1766584799233,0.69,122.0,121.98,3.29606798]
[1766584799934,0.69,122.0,121.98,11.49393913]
[1766584800135,14.96,122.01,121.98,10.83393913]
[1766584800324,11.12767296,122.03,122.0,3.29606798]
[1766584800630,0.69,122.02,121.99,3.29606798]
[1766584801335,0.69,122.02,121.99,11.49326988]
[1766584801509,0.69,122.02,122.0,0.66]
[1766584801706,0.69,122.02,121.99,10.83326988]
[1766584801936,0.69,122.02,121.99,11.49326988]
[1766584805339,10.43767296,122.03,122.0,0.66]
[1766584805634,0.69,122.02,121.99,11.49326988]
[1766584806637,2.63606798,122.02,121.97,18.25606798]
[1766584806939,0.69,122.0,121.97,8.85832076]
[1766584809816,0.68,121.99,121.95,0.66]
[1766584810018,3.31606798,121.99,121.96,0.66]
[1766584810833,0.68,121.99,121.96,0.66]
[1766584811036,0.68,121.99,121.96,8.85930653]
[1766584812321,0.68,121.99,121.96,11.49537451]
[1766584813345,0.68,121.99,121.96,8.85930653]
[1766584816749,0.68,121.99,121.96,11.49537451]
[1766584820851,10.43767296,122.01,121.97,3.29606798]
[1766584821035,0.68,122.0,121.98,3.29606798]
[1766584821637,14.96,122.01,121.99,2.63606798]
[1766584821830,0.68,122.01,121.99,2.63606798]
[1766584822032,0.68,122.01,121.98,3.29606798]
[1766584822232,102.6,122.02,122.0,0.66]
[1766584822432,103.28,122.02,121.99,3.29606798]
[1766584822936,0.68,122.01,121.99,8.8573843]
[1766584823135,0.68,122.01,122.0,2.63606798]
[1766584824147,102.6,122.02,122.0,3.30606798]
[1766584824654,25.39767296,122.03,122.0,3.30606798]
[1766584825659,102.6,122.05,122.02,2.63606798]
[1766584825660,113.03767296,122.05,122.02,2.63606798]
[1766584826154,0.68,122.04,122.02,2.63606798]
[1766584827043,0.68,122.04,122.01,11.50186162]
[1766584827434,0.68,122.04,122.01,8.86579364]
[1766584827846,3.31606798,122.04,121.99,3.30606798]
[1766584828045,0.68,122.03,121.99,3.30606798]
[1766584828246,0.68,122.03,122.0,8.19671207]
[1766584828753,3.31606798,122.04,122.01,0.67]
[1766584829334,15.64,122.03,122.01,0.67]
[1766584829742,15.64,122.03,122.0,0.67]
[1766584831256,14.96,122.03,121.99,10.83324838]
[1766584831464,0.68,122.02,121.99,11.50324838]
[1766584835970,0.68,122.02,121.99,10.55369913]
[1766584836350,0.68,122.02,122.0,2.37651873]
[1766584836644,113.03767296,122.05,122.02,0.69]
[1766584836843,103.27,122.05,122.02,2.37651873]
[1766584837458,0.72,122.06,122.03,2.38651873]
[1766584838971,0.72,122.06,122.03,10.58095238]
[1766584841468,128.88777339,122.09,122.05,0.7]
[1766584841669,129.68419169,122.09,122.05,0.7]
[1766584841972,0.72,122.08,122.05,0.7]
[1766584842661,0.72,122.08,122.05,1.68651873]
[1766584842969,15.68,122.09,122.06,2.38651873]
[1766584843157,0.72,122.09,122.06,2.38651873]
[1766584843757,0.72,122.09,122.07,0.7]
[1766584844153,0.92,122.1,122.07,0.7]
[1766584844352,0.92,122.1,122.06,9.87877694]
[1766584844353,0.2,122.1,122.06,8.19225821]
[1766584844663,0.72,122.09,122.06,8.89225821]
[1766584845066,0.92,122.1,122.06,10.57877694]
[1766584845676,0.72,122.09,122.06,8.89225821]
[1766584846669,0.72,122.09,122.05,1.68651873]
[1766584846670,2.40651873,122.09,122.05,8.19324169]
[1766584846848,0.72,122.08,122.05,8.89324169]
[1766584847171,0.72,122.08,122.04,8.89374752]
[1766584847372,0.72,122.07,122.04,0.7]
[1766584849376,0.72,122.07,122.04,8.89396104]
[1766584850577,0.72,122.07,122.04,10.58047977]
[1766584855070,103.32,122.09,122.05,2.38651873]
[1766584855379,0.72,122.08,122.05,2.38651873]
[1766584857879,102.6,122.09,122.05,9.87970454]
[1766584858085,102.6,122.09,122.06,2.38651873]
[1766584858086,103.32,122.09,122.06,2.38651873]
[1766584859088,103.32,122.09,122.06,10.57920772]
[1766584859466,103.32,122.09,122.06,8.89268899]
[1766584859663,0.72,122.08,122.05,8.193136]
[1766584860063,0.72,122.08,122.05,0.7]
[1766584861004,0.72,122.08,122.05,8.89333333]
[1766584861286,0.72,122.08,122.05,10.57985206]
[1766584861864,103.32,122.09,122.06,1.68651873]
[1766584862084,102.6,122.09,122.07,2.38651873]
[1766584862473,102.6,122.09,122.08,0.7]
[1766584862765,0.92,122.1,122.08,0.7]
[1766584864669,0.92,122.1,122.07,10.57850111]
[1766584866199,0.92,122.1,122.08,2.38651873]
[1766584866885,0.2,122.1,122.08,10.57767283]
[1766584867064,0.2,122.1,122.09,0.7]
[1766584868385,0.2,122.12,122.08,9.87767283]